bitfinex/quotes_ETHUSD_20250403
["timestamp","ask_amount","ask_price","bid_price","bid_amount"]
[1743676734716,5.55591,1799.9,1799.6,0.93470329]
[1743676735014,5.55566,1800.0,1799.6,12.04810329]
[1743676735219,0.25503402,1799.9,1799.7,3.18983319]
[1743676735386,5.5563,1799.8,1799.6,0.93470329]
[1743676735589,0.25503402,1799.7,1799.6,0.93470329]
[1743676735985,5.55592,1799.9,1799.6,4.12453648]
[1743676736201,0.25503402,1799.8,1799.6,9.68121648]
[1743676736400,5.55592,1799.9,1799.6,9.68121648]
[1743676736587,0.25503402,1799.8,1799.6,9.68121648]
[1743676736787,5.55592,1799.9,1799.6,4.12453648]
[1743676736990,0.25503402,1799.8,1799.6,9.68131648]
[1743676737226,5.55557,1800.0,1799.6,0.93470329]
[1743676737227,5.55648,1799.7,1799.6,0.93470329]
[1743676737394,5.81151402,1799.7,1799.6,0.93470329]
[1743676738403,0.25503402,1799.7,1799.6,0.93470329]
[1743676739720,0.25503402,1799.7,1799.6,9.68132648]
[1743676740113,11.11194,1799.9,1799.6,9.68132648]
[1743676740314,0.25503402,1799.7,1799.6,9.68132648]
[1743676740510,5.55592,1799.9,1799.6,9.68132648]
[1743676740720,0.25503402,1799.7,1799.6,10.44231648]
[1743676741226,5.55556,1800.0,1799.6,10.49784055]
[1743676741405,0.25503402,1799.9,1799.8,3.18983319]
[1743676741811,5.55557,1800.0,1799.8,3.18983319]
[1743676741997,5.55557,1800.0,1799.6,15.99909648]
[1743676741998,0.25503402,1799.9,1799.6,15.99909648]
[1743676742328,0.25503402,1799.9,1799.6,10.44236648]
[1743676743127,0.25503402,1799.9,1799.6,15.99902648]
[1743676743733,5.81104402,1799.9,1799.6,4.88563648]
[1743676744027,5.81095402,1799.9,1799.6,0.93470329]
[1743676744246,11.36700402,1799.9,1799.6,4.12453648]
[1743676744456,5.55621,1799.8,1799.6,4.12453648]
[1743676744815,0.25215901,1799.7,1799.6,4.12453648]
[1743676745026,5.80863901,1799.7,1799.6,0.93470329]
[1743676745665,11.87863875,1799.7,1799.6,0.93470329]
[1743676745820,15.69503875,1799.7,1799.6,0.93470329]
[1743676747157,12.69503875,1799.7,1799.6,0.93470329]
[1743676747367,0.25215901,1799.7,1799.6,0.93470329]
[1743676747549,0.25215901,1799.7,1799.6,10.38607109]
[1743676747736,0.25215901,1799.7,1799.6,11.08680581]
[1743676747936,11.112,1799.9,1799.6,5.53001581]
[1743676748140,0.25034799,1799.7,1799.6,4.88083648]
[1743676748340,5.55589,1799.9,1799.6,3.94613319]
[1743676748540,0.25034799,1799.7,1799.4,14.30444319]
[1743676748750,5.55592,1799.9,1799.6,5.55672]
[1743676749879,5.55592,1799.9,1799.5,5.55699]
[1743676750032,5.55623,1799.8,1799.5,5.55699]
[1743676750469,5.55623,1799.8,1799.4,9.54251319]
[1743676750470,5.55653,1799.7,1799.4,9.54251319]
[1743676751338,11.11321,1799.7,1799.4,9.54251319]
[1743676751543,5.55738,1799.5,1799.2,1.38253662]
[1743676751748,11.11476,1799.5,1799.2,1.38253662]
[1743676752267,5.55742,1799.4,1799.2,1.38253662]
[1743676752735,5.55648,1799.7,1799.3,8.74740319]
[1743676752941,5.5562,1799.8,1799.5,3.18983319]
[1743676753449,11.1126,1799.8,1799.5,3.18983319]
[1743676753772,5.55664,1799.7,1799.4,8.74701319]
[1743676753969,5.55623,1799.8,1799.4,8.74701319]
[1743676754140,11.11263,1799.8,1799.4,14.30430319]
[1743676754341,5.55648,1799.7,1799.4,3.18983319]
[1743676754758,5.55648,1799.7,1799.4,8.74723319]
[1743676755878,5.55655,1799.7,1799.4,8.74709319]
[1743676756239,5.55621,1799.8,1799.5,5.55708]
[1743676756440,6.06999974,1799.9,1799.7,5.55644]
[1743676756755,6.06999974,1799.9,1799.5,1.66559132]
[1743676756756,5.55623,1799.8,1799.5,7.22265132]
[1743676756957,11.11262,1799.8,1799.5,0.7909]
[1743676757156,11.11262,1799.8,1799.4,8.74720319]
[1743676757157,5.55659,1799.7,1799.4,8.74720319]
[1743676757367,5.55623,1799.8,1799.4,8.74713319]
[1743676757569,11.11264,1799.8,1799.4,8.74713319]
[1743676757956,5.55623,1799.8,1799.4,14.30439319]
[1743676758157,5.55648,1799.7,1799.4,8.74709319]
[1743676758357,11.62591974,1799.9,1799.4,3.24540235]
[1743676758566,17.18200974,1799.9,1799.5,5.55681]
[1743676759080,0.00533184,1799.6,1799.5,5.55681]
[1743676759782,0.00533184,1799.6,1799.5,5.61237515]
[1743676759990,0.25557349,1799.6,1799.5,6.38007515]
[1743676760206,0.00533184,1799.6,1799.5,6.32451]
[1743676760489,0.00533184,1799.6,1799.5,7.87204034]
[1743676760649,0.25599957,1799.6,1799.5,7.87204034]
[1743676760849,0.25599957,1799.6,1799.5,6.32451]
[1743676761445,0.25599957,1799.6,1799.5,6.38007352]
[1743676761798,0.25599957,1799.6,1799.5,6.32451]
[1743676762597,0.25599957,1799.6,1799.5,6.38007526]
[1743676763015,0.25599957,1799.6,1799.3,5.55764]
[1743676763296,5.81278957,1799.6,1799.3,11.11523]
[1743676763468,0.25599957,1799.6,1799.4,5.55731]
[1743676763901,0.25599957,1799.6,1799.3,5.55759]
[1743676764197,5.81281957,1799.6,1799.3,11.11519]
[1743676764900,5.81281957,1799.6,1799.3,5.55759]
[1743676765602,5.81281957,1799.6,1799.3,11.11518]
[1743676765804,0.25599957,1799.6,1799.4,5.55737]
[1743676766201,0.25599957,1799.6,1799.4,11.11468]
[1743676766497,0.25599957,1799.6,1799.4,11.11462]
[1743676766712,0.25599957,1799.6,1799.4,5.55731]
[1743676766907,0.25599957,1799.6,1799.3,11.1153]
[1743676767699,5.55723,1799.5,1799.2,1.42733662]
[1743676767906,5.81286957,1799.6,1799.2,6.98529662]
[1743676768111,0.24992208,1799.4,1799.3,5.55758]
[1743676768273,0.00533184,1799.6,1799.4,5.55731]
[1743676768479,0.00533184,1799.6,1799.2,5.32069947]
[1743676768810,5.55712,1799.5,1799.2,10.17505981]
[1743676769303,5.56227184,1799.6,1799.3,5.55766]
[1743676769505,0.00533184,1799.6,1799.3,5.55761]
[1743676769713,0.00533184,1799.6,1799.4,5.55739]
[1743676770710,5.56221184,1799.6,1799.3,5.55761]
[1743676771215,0.00533184,1799.6,1799.4,5.5574]
[1743676771514,0.00533184,1799.6,1799.4,5.55732]
[1743676771675,0.00533184,1799.6,1799.5,6.37195907]
[1743676771880,0.00533184,1799.6,1799.5,6.31639]
[1743676773482,0.00533184,1799.6,1799.5,6.37195182]
[1743676773682,0.00533184,1799.6,1799.5,6.31639]
[1743676773987,5.56221184,1799.6,1799.4,3.18983319]
[1743676774584,5.56221184,1799.6,1799.3,5.55758]
[1743676774783,0.24954919,1799.5,1799.3,5.55758]
[1743676776010,5.80664919,1799.5,1799.2,9.37091981]
[1743676776643,5.80664919,1799.5,1799.2,14.92884981]
[1743676777313,5.80664919,1799.5,1799.2,9.37089981]
[1743676778007,5.80664919,1799.5,1799.2,14.92881981]
[1743676779340,0.24954919,1799.5,1799.2,9.37088981]
[1743676779545,0.24954919,1799.5,1799.4,9.55173319]
[1743676779923,0.24954919,1799.5,1799.4,9.60729542]
[1743676780135,0.24954919,1799.5,1799.4,9.55173319]
[1743676780534,0.24954919,1799.5,1799.4,9.60729782]
[1743676781041,0.24954919,1799.5,1799.3,11.94139]
[1743676781253,0.24954919,1799.5,1799.4,5.5574]
[1743676781425,0.24954919,1799.5,1799.3,6.38377]
[1743676782141,0.24954919,1799.5,1799.3,5.61314049]
[1743676782443,0.24954919,1799.5,1799.3,5.55757]
[1743676782649,0.24954919,1799.5,1799.3,5.61314141]
[1743676783022,0.24954919,1799.5,1799.2,10.94598179]
[1743676783023,0.24954919,1799.5,1799.2,9.37094981]
[1743676783230,5.80664919,1799.5,1799.2,0.62313662]
[1743676783530,5.80670919,1799.5,1799.2,0.62313662]
[1743676783733,5.5575,1799.4,1799.2,0.62313662]
[1743676784136,0.2288024,1799.3,1799.2,0.62313662]
[1743676784951,5.55749,1799.4,1799.2,0.62313662]
[1743676785151,0.2288024,1799.3,1799.2,0.62313662]
[1743676785550,5.55749,1799.4,1799.2,0.62313662]
[1743676785755,5.7865124,1799.3,1799.2,0.62313662]
[1743676786276,0.2288024,1799.3,1799.2,0.62313662]
[1743676786616,5.55771,1799.3,1799.2,0.62313662]
[1743676786822,9.59258441,1799.3,1799.2,0.62313662]
[1743676787050,10.10332764,1799.3,1799.2,0.62313662]
[1743676787822,9.37522,1799.2,1799.1,1.68e-06]
[1743676788033,6.37741,1798.5,1798.2,5.56111]
[1743676788234,5.55912,1798.9,1798.4,5.56019]
[1743676788235,0.8172,1798.8,1798.4,5.56019]
[1743676788560,5.55859,1799.1,1798.3,4.01233763]
[1743676788561,0.22597221,1798.7,1798.6,5.55987]
[1743676789069,0.22597221,1798.7,1798.6,5.5597]
[1743676789070,0.22399542,1798.7,1798.6,5.5597]
[1743676789233,5.55998,1798.6,1798.3,0.7669]
[1743676789442,5.5593,1798.8,1798.4,5.56039]
[1743676789639,0.22399542,1798.7,1798.4,5.56039]
[1743676790047,0.22399542,1798.7,1798.5,5.55994]
[1743676790254,5.55899,1798.9,1798.5,5.55994]
[1743676790453,0.22399542,1798.8,1798.5,11.12001]
[1743676790668,5.55899,1798.9,1798.5,5.55994]
[1743676790870,0.21998982,1798.7,1798.5,11.11996]
[1743676791080,5.55899,1798.9,1798.5,11.11996]
[1743676791375,11.93479,1799.0,1798.6,5.55971]
[1743676791753,5.55895,1798.9,1798.6,5.55971]
[1743676792270,6.37588,1799.0,1798.5,1.60545344]
[1743676792271,5.55834,1799.1,1798.7,6.44369332]
[1743676792437,15.42878974,1799.2,1798.5,7.93851012]
[1743676792640,5.55912,1798.9,1798.5,6.38865]
[1743676792875,5.55882,1799.0,1798.6,0.05559301]
[1743676793039,11.11767,1799.0,1798.6,5.61537301]
[1743676793240,6.35226,1798.9,1798.5,6.38875]
[1743676793442,6.35226,1798.9,1798.5,11.94876]
[1743676793652,6.35226,1798.9,1798.5,6.38871]
[1743676793852,6.35226,1798.9,1798.6,5.55984]
[1743676794865,0.7932,1798.9,1798.6,11.11959]
[1743676795054,0.7932,1798.9,1798.6,5.55975]
[1743676795252,6.35215,1798.9,1798.6,5.55975]
[1743676796257,11.11888,1798.8,1798.4,5.56043]
[1743676796463,5.55975,1798.7,1798.3,5.56075]
[1743676796789,3.8047,1798.8,1798.2,5.56106]
[1743676796975,11.12008,1798.6,1798.2,11.12203]
[1743676797276,5.56025,1798.5,1798.2,5.56106]
[1743676797475,5.5599,1798.6,1798.2,5.5611]
[1743676797771,5.5599,1798.6,1798.3,5.56077]
[1743676798178,0.7694,1798.5,1798.1,0.05]
[1743676798361,5.56059,1798.4,1798.1,5.61141]
[1743676798545,5.56054,1798.4,1798.1,5.61141]
[1743676799285,11.1212,1798.4,1798.1,5.61141]
[1743676799579,11.1212,1798.4,1798.1,0.05]
[1743676799785,5.56091,1798.3,1798.1,0.05]
[1743676800170,5.56111,1798.2,1798.1,0.05]
[1743676800356,5.56091,1798.3,1798.1,0.05]
[1743676800563,6.32965,1798.5,1798.1,0.05]
[1743676800763,5.56025,1798.5,1798.2,6.35897]
[1743676800981,6.06999974,1798.6,1798.3,5.56066]
[1743676801176,0.7549,1798.7,1798.2,0.85350597]
[1743676801396,0.7549,1798.7,1798.3,5.56073]
[1743676801397,6.31456,1798.7,1798.3,5.56073]
[1743676801598,5.55994,1798.6,1798.3,5.56073]
[1743676801776,5.55994,1798.6,1798.2,5.561]
[1743676802102,5.56021,1798.5,1798.2,5.561]
[1743676802596,5.55994,1798.6,1798.2,11.12198]
[1743676802801,0.7549,1798.7,1798.4,5.5604]
[1743676802974,6.31448,1798.7,1798.4,5.5604]
[1743676803182,8.55906,1798.9,1798.5,5.5601]
[1743676803369,6.35666,1798.9,1798.6,6.33527]
[1743676803570,5.55926,1798.8,1798.6,0.7754]
[1743676803800,6.35666,1798.9,1798.3,6.33607]
[1743676803801,5.55986,1798.7,1798.3,6.33607]
[1743676803965,5.55989,1798.6,1798.2,5.56097]
[1743676804172,5.55989,1798.6,1798.2,11.12197]
[1743676804396,5.55989,1798.6,1798.3,5.56077]
[1743676804598,11.11997,1798.6,1798.3,5.56077]
[1743676804781,11.11997,1798.6,1798.2,5.56097]
[1743676804978,0.21635561,1798.5,1798.2,11.12197]
[1743676805501,0.21635561,1798.5,1798.2,0.4241688]
[1743676805502,5.5607,1798.4,1798.2,0.4241688]
[1743676805704,11.12145,1798.4,1798.2,0.4241688]
[1743676805907,5.5607,1798.4,1798.2,0.4241688]
[1743676806097,0.21635561,1798.3,1798.2,0.4241688]
[1743676806293,5.56067,1798.4,1798.2,0.4241688]
[1743676806601,5.56111,1798.2,1798.1,0.05]
[1743676807105,15.66397047,1798.2,1798.1,0.05]
[1743676807419,5.56255,1797.8,1797.1,0.6]
[1743676807580,5.56255,1797.8,1797.1,6.92733]
[1743676807581,6.06999974,1797.8,1797.1,6.92733]
[1743676807787,5.56354,1797.5,1797.1,0.6]
[1743676808121,5.5637,1797.4,1797.1,0.6]
[1743676808316,5.77834496,1797.4,1797.1,0.6]
[1743676808828,6.341,1797.3,1797.1,0.6]
[1743676809317,15.6256447,1797.3,1797.1,0.6]
[1743676810082,15.6256447,1797.3,1796.5,4.8553719]
[1743676810083,5.56606,1796.6,1796.5,4.8553719]
[1743676810402,0.20421386,1796.6,1796.5,4.8553719]
[1743676810820,0.20421386,1796.6,1796.5,12.28859917]
[1743676811030,6.34248,1797.1,1796.7,5.56572]
[1743676811229,0.7778,1797.1,1796.5,6.66656709]
[1743676811436,5.56498,1797.0,1796.6,5.56584]
[1743676811640,3.7768,1797.4,1796.7,0.05565457]
[1743676811926,5.56438,1797.2,1796.5,15.84529311]
[1743676812092,5.56438,1797.2,1796.8,5.56526]
[1743676812286,5.56438,1797.2,1796.8,11.18618682]
[1743676812621,5.56473,1797.1,1796.7,5.56575]
[1743676812788,6.06999974,1797.5,1796.5,4.8553719]
[1743676812789,5.56557,1796.8,1796.5,4.8553719]
[1743676812983,0.7684,1797.0,1796.5,4.8553719]
[1743676812984,5.56606,1796.6,1796.5,4.8553719]
[1743676813211,0.7684,1797.0,1796.5,4.8553719]
[1743676813550,6.83839974,1797.0,1796.5,4.8553719]
[1743676813848,5.56513,1796.9,1796.5,4.8553719]
[1743676814057,5.56606,1796.6,1796.5,4.8553719]
[1743676814257,9.31976,1796.6,1796.5,4.8553719]
[1743676814413,5.56699,1796.3,1795.1,0.05]
[1743676814768,11.75837319,1795.8,1795.7,2.46e-06]
[1743676815057,6.06999974,1795.9,1795.7,2.46e-06]
[1743676815427,5.56854,1795.8,1795.7,2.46e-06]
[1743676816011,15.60481293,1795.9,1795.7,2.46e-06]
[1743676816012,6.84659974,1795.9,1795.7,2.46e-06]
[1743676816212,5.56854,1795.8,1795.7,2.46e-06]
[1743676816617,12.41491974,1795.9,1795.7,2.46e-06]
[1743676816812,6.06999974,1795.9,1795.7,2.46e-06]
[1743676817048,9.06999974,1796.2,1795.9,5.56822]
[1743676817218,11.63753974,1796.2,1795.8,5.5684]
[1743676817833,6.06999974,1796.2,1795.7,1.33650471]
[1743676818048,6.06999974,1796.2,1796.0,5.56764]
[1743676818217,6.06999974,1796.2,1796.0,5.56791]
[1743676818416,6.06999974,1796.2,1795.7,0.77960246]
[1743676818417,5.56747,1796.2,1795.7,0.77960246]
[1743676818616,5.56747,1796.2,1795.7,6.34827246]
[1743676818816,5.56775,1796.1,1795.7,6.34294062]
[1743676819012,0.8191,1796.4,1795.5,5.56931]
[1743676819013,5.56835,1795.9,1795.5,5.56931]
[1743676819951,5.56963,1795.5,1795.1,0.05]
[1743676820266,5.57033,1795.3,1795.1,0.05]
[1743676820473,6.34102,1795.4,1795.1,0.05]
[1743676820762,6.06999974,1795.5,1795.1,0.05]
[1743676820915,0.7712,1796.0,1795.5,5.56944]
[1743676821120,5.56897,1795.7,1795.3,5.56992]
[1743676821418,5.56858,1795.8,1795.4,5.56958]
[1743676821962,5.56824,1795.9,1795.4,5.56958]
[1743676822168,9.33927,1796.0,1795.6,5.56916]
[1743676822313,3.7712,1796.0,1795.4,5.5696]
[1743676822516,5.56877,1795.8,1795.4,6.26685178]
[1743676822871,6.06999974,1796.1,1795.5,3.65509513]
[1743676823074,6.06999974,1796.1,1796.0,5.56792]
[1743676823275,5.56684,1796.4,1796.0,5.56782]
[1743676823479,6.32318,1796.7,1795.8,0.8291]
[1743676823480,5.56753,1796.2,1795.8,6.39763]
[1743676823771,5.56795,1796.0,1795.7,5.56884]
[1743676823951,5.56761,1796.1,1795.5,5.56923]
[1743676824124,5.56761,1796.1,1795.4,11.13929]
[1743676824125,5.56853,1795.9,1795.4,11.13929]
[1743676824326,6.06999974,1796.0,1795.3,5.57004]
[1743676824327,6.38702,1795.7,1795.3,5.57004]
[1743676824627,0.8179,1795.7,1795.4,5.56968]
[1743676825065,0.8179,1795.7,1795.4,5.56962]
[1743676825222,12.43275974,1796.0,1795.6,5.56916]
[1743676825558,11.13688,1795.9,1795.5,5.56939]
[1743676825775,5.56856,1795.8,1795.4,5.5697]
[1743676826279,5.56856,1795.8,1795.4,11.13933]
[1743676826474,5.56856,1795.8,1795.1,5.62068]
[1743676826475,5.56964,1795.5,1795.1,5.62068]
[1743676826766,5.56964,1795.5,1795.1,5.62058]
[1743676826974,5.5704,1795.2,1795.1,0.05]
[1743676827185,5.5704,1795.2,1793.7,5.67488]
[1743676827186,5.57188,1794.8,1793.1,1.20791305]
[1743676827330,9.81890546,1794.7,1793.7,5.57488]
[1743676827645,9.81890546,1794.7,1793.2,0.8175]
[1743676827646,5.57367,1794.2,1793.6,5.57508]
[1743676827849,5.57337,1794.3,1793.8,5.5747]
[1743676828075,5.57452,1793.9,1793.2,5.57637]
[1743676828240,0.8032,1793.8,1793.5,5.57546]
[1743676828443,6.32805,1794.2,1793.7,5.57489]
[1743676828640,0.7543,1794.2,1793.8,5.57471]
[1743676828853,6.06999974,1794.3,1793.4,0.7655]
[1743676829022,11.64322974,1794.3,1793.5,0.05574315]
[1743676829345,0.7543,1794.5,1793.5,0.44763383]
[1743676829543,0.7543,1794.5,1793.4,0.7655]
[1743676829544,5.57443,1794.0,1793.4,6.34132]
[1743676829748,5.57445,1793.9,1793.5,5.57555]
[1743676829948,5.57531,1793.7,1793.2,5.5764]
[1743676830145,11.1515,1793.5,1793.1,0.05]
[1743676830358,5.57535,1793.7,1793.1,0.05]
[1743676830563,5.57533,1793.7,1793.2,11.15281]
[1743676830859,11.15136,1793.6,1793.1,5.62687]
[1743676831034,5.5757,1793.5,1793.1,0.05]
[1743676831236,3.65509513,1793.7,1793.1,0.05]
[1743676831467,0.5256,1793.1,1792.2,1.3493]
[1743676831764,5.57756,1792.9,1792.3,9.29019121]
[1743676831965,0.09350182,1793.0,1792.4,0.92901912]
[1743676832151,0.09350182,1793.0,1792.2,5.00439513]
[1743676832152,5.57769,1792.9,1792.2,1.3493]
[1743676832357,5.57769,1792.9,1792.2,0.55]
[1743676832358,6.06999974,1792.8,1792.2,0.55]
[1743676832677,5.57942,1792.3,1792.2,0.55]
[1743676832883,6.06999974,1792.6,1792.2,0.55]
[1743676833368,5.57942,1792.3,1792.2,0.55]
[1743676833553,5.5793,1792.4,1792.2,0.55]
[1743676833772,14.64941974,1792.3,1792.2,0.55]
[1743676834074,5.58085,1791.9,1791.3,5.58233]
[1743676834287,6.06999974,1792.0,1791.8,5.58097]
[1743676834429,6.06999974,1792.0,1791.6,5.58137]
[1743676834430,0.8165,1792.4,1791.7,5.58113]
[1743676834634,0.8165,1792.4,1791.4,0.558233]
[1743676835070,0.35526408,1792.3,1791.8,0.7979]
[1743676835553,6.06999974,1792.5,1791.9,5.58066]
[1743676835872,6.06999974,1792.5,1791.8,0.7979]
[1743676835873,0.8141,1792.1,1791.3,0.7597]
[1743676836078,6.06999974,1792.0,1791.3,0.7597]
[1743676836284,6.42643925,1792.0,1791.0,5.58347]
[1743676836574,6.06999974,1791.9,1791.1,0.558347]
[1743676836770,11.68180082,1791.9,1791.1,5.58315]
[1743676836935,6.39565848,1791.8,1791.1,5.58303]
[1743676837140,6.42713637,1791.8,1790.9,0.05582839]
[1743676837335,6.42713637,1791.8,1791.5,5.58178]
[1743676837562,6.42713637,1791.8,1791.3,5.58247]
[1743676837736,6.42713637,1791.8,1791.3,0.558247]
[1743676837938,6.06999974,1791.7,1790.8,5.58409]
[1743676838142,5.58298,1791.2,1790.4,9.51900364]
[1743676838336,6.92669953,1791.1,1790.3,0.05583759]
[1743676838535,7.24618527,1791.1,1790.8,5.58394]
[1743676838743,0.31948574,1791.1,1791.0,5.58347]
[1743676839297,6.06999974,1791.4,1790.4,0.7767]
[1743676839298,6.06999974,1791.4,1791.2,5.58262]
[1743676839788,6.06999974,1791.4,1791.3,5.58253]
[1743676840075,6.06999974,1791.7,1791.3,5.58237]
[1743676840239,3.0,1791.6,1790.9,5.58364]
[1743676840444,5.58257,1791.3,1790.6,5.58442]
[1743676840641,11.65310974,1791.2,1790.6,5.58459]
[1743676840839,6.06999974,1791.1,1790.1,0.8389]
[1743676841177,3.0,1790.4,1790.1,0.05]
[1743676841376,6.17159353,1790.3,1790.2,5.58596]
[1743676841596,0.10159379,1790.3,1790.2,6.149556]
[1743676841921,6.88169974,1791.5,1790.8,5.58409]
[1743676842038,6.06999974,1791.5,1791.4,5.58222]
[1743676842377,6.06999974,1791.7,1791.3,5.58228]
[1743676842540,6.06999974,1791.7,1791.4,5.58208]
[1743676843182,6.06999974,1791.7,1791.3,5.58253]
[1743676843364,6.06999974,1791.7,1791.2,5.58284]
[1743676843670,6.06999974,1791.7,1791.6,5.5816]
[1743676843872,11.59353413,1792.3,1791.9,5.58036]
[1743676844075,11.59353413,1792.3,1792.0,5.58019]
[1743676844385,11.59353413,1792.3,1791.5,0.8263]
[1743676844386,5.52353439,1792.3,1791.5,0.8263]
[1743676844549,5.52353439,1792.3,1792.1,5.57987]
[1743676844742,5.52353439,1792.3,1792.2,5.57973]
[1743676845703,5.52353439,1792.3,1792.1,5.57987]
[1743676845849,5.52353439,1792.3,1792.2,5.57973]
[1743676846044,6.06999974,1792.4,1792.3,5.57942]
[1743676846275,6.4088,1792.7,1792.0,5.58027]
[1743676846276,6.06999974,1792.6,1792.0,5.58027]
[1743676846597,0.05,1792.9,1792.4,5.57889]
[1743676846795,0.05,1792.9,1792.3,0.8046]
[1743676846796,0.05,1792.9,1792.7,5.57816]
[1743676846956,0.05,1792.9,1792.8,5.57786]
[1743676847352,0.05,1792.9,1792.7,5.57803]
[1743676847692,0.05,1792.9,1792.6,11.15679]
[1743676847894,0.05,1792.9,1792.7,5.57817]
[1743676848043,0.05,1792.9,1792.8,5.57786]
[1743676848242,0.05,1792.9,1792.6,5.57832]
[1743676848771,0.05,1792.9,1792.7,5.57814]
[1743676849147,5.62779,1792.9,1792.5,5.57849]
[1743676849342,5.57841,1792.7,1792.1,5.57982]
[1743676849553,5.57841,1792.7,1792.2,5.5796]
[1743676849755,6.06999974,1792.8,1792.6,5.57836]
[1743676849967,0.05,1792.9,1792.6,5.57836]
[1743676851368,0.7734,1792.8,1792.1,5.58001]
[1743676851584,6.35149,1792.8,1792.3,5.57927]
[1743676851892,11.92956,1792.8,1792.3,5.57927]
[1743676852091,5.57836,1792.7,1792.3,5.57927]
[1743676852291,11.15683,1792.7,1792.3,5.57927]
[1743676852490,5.5785,1792.6,1792.2,11.15927]
[1743676852699,6.35127,1792.8,1792.3,5.57917]
[1743676852901,0.05,1792.9,1792.5,5.5786]
[1743676853062,0.05,1792.9,1792.6,5.57847]
[1743676853264,0.8072,1792.7,1791.8,0.7606]
[1743676853599,5.58285,1791.2,1790.8,6.34458]
[1743676853900,5.58332,1791.1,1790.6,5.58457]
[1743676854064,5.58287,1791.2,1790.7,11.78294585]
[1743676854262,3.0,1791.5,1790.9,5.58377]
[1743676854467,5.58299,1791.2,1790.8,5.58408]
[1743676854709,5.58224,1791.4,1790.9,5.58356]
[1743676854871,3.0,1791.5,1791.0,6.141526]
[1743676854872,5.58205,1791.5,1791.0,6.141526]
[1743676855068,5.5821,1791.5,1791.0,5.58334]
[1743676855265,3.0,1791.6,1790.7,0.558457]
[1743676855465,5.58237,1791.4,1791.0,5.58333]
[1743676855662,6.06999974,1791.7,1791.1,0.84802759]
[1743676855878,0.2901,1791.8,1791.5,5.58177]
[1743676856106,0.2901,1791.8,1791.7,5.58129]
[1743676856306,0.2901,1791.8,1791.7,5.63709884]
[1743676856511,0.2901,1791.8,1791.1,5.27586364]
[1743676856714,0.2901,1791.8,1791.7,5.58129]
[1743676856904,0.2901,1791.8,1791.6,5.58148]
[1743676857418,0.2901,1791.8,1791.6,5.58146]
[1743676857592,0.2901,1791.8,1791.7,6.4304981]
[1743676857797,0.2901,1791.8,1791.7,6.37469]
[1743676858114,0.2901,1791.8,1791.7,7.570305]
[1743676858312,0.2901,1791.8,1791.7,11.50396864]
[1743676859562,5.52353439,1792.4,1791.9,5.58066]
[1743676859728,5.52353439,1792.4,1792.3,5.57942]
[1743676860015,5.52353439,1792.4,1792.2,11.15928]
[1743676860225,5.62771,1792.9,1792.2,1.115928]
[1743676860382,0.05,1792.9,1792.4,5.5791]
[1743676860581,0.05,1792.9,1792.6,5.57843]
[1743676860785,0.05,1792.9,1792.3,0.7955]
[1743676861017,0.05,1792.9,1792.5,5.57864]
[1743676861200,0.05,1792.9,1792.6,5.57847]
[1743676861398,0.05,1792.9,1792.6,11.15677]
[1743676861625,0.05,1792.9,1792.6,5.5783]
[1743676861986,0.05,1792.9,1792.6,11.15658]
[1743676862318,0.05,1792.9,1792.6,5.57828]
[1743676862520,5.57788,1792.8,1792.4,5.5791]
[1743676862694,3.05,1792.9,1792.0,0.7888]
[1743676862886,5.57908,1792.5,1792.0,5.58025]
[1743676863090,0.8051,1792.6,1792.0,0.558025]
[1743676863287,5.57978,1792.2,1791.8,5.58082]
[1743676863498,11.15974,1792.2,1791.8,5.58082]
[1743676863998,5.57978,1792.2,1791.8,11.16161]
[1743676864224,5.58056,1792.0,1791.5,5.58172]
[1743676864394,5.58154,1791.7,1791.1,0.8192]
[1743676864595,5.58191,1791.5,1791.1,0.8192]
[1743676864787,5.58174,1791.6,1791.1,0.8192]
[1743676864983,0.25590248,1791.4,1791.2,5.58268]
[1743676865227,5.58105,1791.8,1791.3,5.58253]
[1743676865522,5.5816,1791.6,1791.2,6.222868]
[1743676865691,5.58205,1791.5,1791.0,5.58327]
[1743676865886,5.83795248,1791.5,1791.0,5.58327]
[1743676866100,0.25590248,1791.5,1791.0,5.58327]
[1743676866299,0.25590248,1791.5,1791.4,5.58222]
[1743676866824,0.25590248,1791.5,1791.3,5.58242]
[1743676866994,0.22538626,1791.5,1791.3,5.58242]
[1743676867191,5.58141,1791.7,1791.3,5.58242]
[1743676867397,0.22544085,1791.4,1791.3,5.58242]
[1743676867727,5.52353439,1792.2,1791.4,0.7614]
[1743676868028,5.52353439,1792.2,1791.8,5.58089]
[1743676868230,5.52353439,1792.2,1792.1,5.58004]
[1743676868742,5.52353439,1792.2,1792.0,5.58031]
[1743676869104,6.4544957,1792.3,1792.1,5.57979]
[1743676869319,6.4544957,1792.3,1792.2,5.57973]
[1743676870925,6.4544957,1792.3,1791.3,0.808]
[1743676871148,12.52449544,1792.3,1791.3,0.808]
[1743676871343,18.10403544,1792.3,1791.9,5.58066]
[1743676871647,6.4544957,1792.3,1792.0,5.58021]
[1743676871820,6.4544957,1792.3,1792.1,5.57993]
[1743676872145,6.4544957,1792.3,1791.9,6.35442]
[1743676872457,11.15789,1792.5,1792.0,5.58022]
[1743676872748,5.57918,1792.4,1792.0,5.5802]
[1743676873107,5.57888,1792.5,1792.0,5.58019]
[1743676873300,5.57882,1792.5,1792.1,5.58002]
[1743676873503,5.57882,1792.5,1792.0,6.215569]
[1743676873748,5.57882,1792.5,1792.1,5.57993]
[1743676874043,11.15782,1792.5,1792.1,5.57993]
[1743676874255,6.06999974,1792.6,1791.9,0.774]
[1743676874545,6.06999974,1792.6,1792.1,5.5799]
[1743676874705,6.06999974,1792.6,1792.2,5.57963]
[1743676874901,8.30924274,1792.4,1792.2,5.57963]
[1743676875451,8.30924274,1792.4,1792.3,5.57942]
[1743676878141,2.74e-06,1792.4,1792.3,6.12942]
[1743676878540,2.74e-06,1792.4,1792.3,5.57942]
[1743676878756,0.19772753,1792.4,1792.3,5.57942]